bitfinex-derivatives/quotes_BTCF0:USTF0_20230101
["timestamp","ask_amount","ask_price","bid_price","bid_amount"]
[1672588638055,1.6252028,16560.0,16559.0,1.86136229]
[1672588638266,1.6252028,16560.0,16559.0,1.36169167]
[1672588638689,1.6252028,16560.0,16559.0,1.86136197]
[1672588642047,1.6252028,16560.0,16559.0,1.72569087]
[1672588642264,1.6252028,16560.0,16559.0,1.86134598]
[1672588642475,1.6252028,16560.0,16559.0,1.72569087]
[1672588643626,1.6252028,16560.0,16559.0,1.42499087]
[1672588643842,1.6252028,16560.0,16559.0,1.72569087]
[1672588644359,1.6252028,16560.0,16559.0,1.86134402]
[1672588644570,1.6252028,16560.0,16559.0,1.72569087]
[1672588644788,1.6252028,16560.0,16559.0,1.42499087]
[1672588644997,1.6252028,16560.0,16559.0,1.72569087]
[1672588645515,1.6252028,16560.0,16559.0,1.42499087]
[1672588646047,1.6252028,16560.0,16559.0,1.72569087]
[1672588646575,1.6252028,16560.0,16559.0,1.86134581]
[1672588647099,1.6252028,16560.0,16559.0,1.86135045]
[1672588648884,1.6252028,16560.0,16559.0,1.72569087]
[1672588653085,1.6252028,16560.0,16559.0,1.42499087]
[1672588653296,1.6252028,16560.0,16559.0,1.72569087]
[1672588653816,1.6252028,16560.0,16559.0,1.42499087]
[1672588654027,1.6252028,16560.0,16559.0,1.72569087]
[1672588657598,1.6252028,16560.0,16559.0,1.42499087]
[1672588657808,1.6252028,16560.0,16559.0,1.72569087]
[1672588658869,1.6252028,16560.0,16559.0,1.42499087]
[1672588659080,1.6252028,16560.0,16559.0,1.95239695]
[1672588660641,1.6252028,16560.0,16559.0,1.72569087]
[1672588661066,1.6252028,16560.0,16559.0,1.95239695]
[1672588661285,1.6252028,16560.0,16559.0,1.72569087]
[1672588662546,1.6252028,16560.0,16559.0,1.42499087]
[1672588662857,1.6252028,16560.0,16559.0,1.95239695]
[1672588663481,1.6252028,16560.0,16559.0,1.77107638]
[1672588663916,1.6252028,16560.0,16559.0,1.95211484]
[1672588664318,1.6252028,16560.0,16559.0,1.77107638]
[1672588669477,1.6252028,16560.0,16559.0,1.5443703]
[1672588669689,1.6252028,16560.0,16559.0,1.77060467]
[1672588670214,1.6252028,16560.0,16559.0,1.5443703]
[1672588675160,1.6252028,16560.0,16559.0,1.77048891]
[1672588678623,1.6252028,16560.0,16559.0,1.46978891]
[1672588678940,1.6252028,16560.0,16559.0,1.77048891]
[1672588679356,1.6252028,16560.0,16559.0,1.77032661]
[1672588682629,1.6252028,16560.0,16559.0,1.46962661]
[1672588682840,1.6252028,16560.0,16559.0,1.77032661]
[1672588685353,1.6252028,16560.0,16559.0,1.544208]
[1672588685666,1.6252028,16560.0,16559.0,1.77029899]
[1672588686192,1.6252028,16560.0,16559.0,1.544208]
[1672588686621,1.6252028,16560.0,16559.0,1.243508]
[1672588686831,1.6252028,16560.0,16559.0,1.544208]
[1672588688091,1.6252028,16560.0,16559.0,1.243508]
[1672588688292,1.3245028,16560.0,16559.0,1.544208]
[1672588688504,1.3245028,16560.0,16559.0,1.77029006]
[1672588691560,1.3245028,16560.0,16559.0,1.544208]
[1672588691769,1.3245028,16560.0,16559.0,1.77030503]
[1672588692189,1.3245028,16560.0,16559.0,1.544208]
[1672588692718,1.3245028,16560.0,16559.0,1.77030577]
[1672588692924,1.29396425,16560.0,16559.0,1.77030577]
[1672588693147,1.29396425,16560.0,16559.0,1.544208]
[1672588693349,1.29396425,16560.0,16559.0,1.77031206]
[1672588693559,1.29396425,16560.0,16559.0,1.544208]
[1672588695763,1.29396425,16560.0,16559.0,1.77032249]
[1672588695973,1.29396425,16560.0,16559.0,1.544208]
[1672588696816,1.28322911,16560.0,16559.0,1.544208]
[1672588702921,1.25943804,16560.0,16559.0,1.544208]
[1672588703129,1.25943804,16560.0,16559.0,1.81610544]
[1672588719961,1.25943804,16560.0,16559.0,1.544208]
[1672588720591,1.25943804,16560.0,16559.0,1.81610544]
[1672588723734,1.25943804,16560.0,16559.0,1.81510544]
[1672588723948,1.25943804,16560.0,16559.0,1.51440544]
[1672588724164,1.25943804,16560.0,16559.0,1.543208]
[1672588725107,1.25943804,16560.0,16559.0,1.81510544]
[1672588726898,1.22915404,16560.0,16559.0,1.81510544]
[1672588727104,1.22915404,16560.0,16559.0,1.90590711]
[1672588728795,1.22915404,16560.0,16559.0,2.17726869]
[1672588729526,1.22915404,16560.0,16559.0,1.81456958]
[1672588732885,1.20536339,16560.0,16559.0,1.81456958]
[1672588741604,1.20536339,16560.0,16559.0,1.543208]
[1672588743074,1.20536339,16560.0,16559.0,1.81456958]
[1672588743391,1.20536339,16560.0,16559.0,1.543208]
[1672588743602,1.20536339,16560.0,16559.0,1.81456958]
[1672588743811,1.20536339,16560.0,16559.0,1.543208]
[1672588744546,1.20536339,16560.0,16559.0,1.81456958]
[1672588751164,1.19046139,16560.0,16559.0,1.81456958]
[1672588759044,1.19046139,16560.0,16559.0,1.51386958]
[1672588759361,1.19046139,16560.0,16559.0,1.81456958]
[1672588763162,1.16667083,16560.0,16559.0,1.81456958]
[1672588763371,1.16667083,16560.0,16559.0,1.543208]
[1672588763789,1.16667083,16560.0,16559.0,1.81456958]
[1672588766312,1.16667083,16560.0,16559.0,2.17726869]
[1672588768405,1.16667083,16560.0,16559.0,1.90590711]
[1672588770299,1.16667083,16560.0,16559.0,2.17732205]
[1672588770823,1.16667083,16560.0,16559.0,1.81462294]
[1672588771037,1.16667083,16560.0,16559.0,2.17732205]
[1672588771556,1.16667083,16560.0,16559.0,1.81462294]
[1672588774914,1.16667083,16560.0,16559.0,1.51392294]
[1672588775131,1.16667083,16560.0,16559.0,1.81462294]
[1672588775438,1.16667083,16560.0,16559.0,1.543208]
[1672588775659,1.16667083,16560.0,16559.0,1.81462294]
[1672588779648,1.16667083,16560.0,16559.0,1.51392294]
[1672588779860,1.16667083,16560.0,16559.0,1.81462294]
[1672588786592,1.16667083,16560.0,16559.0,1.51392294]
[1672588786906,1.16667083,16560.0,16559.0,1.81462294]
[1672588787329,1.16667083,16560.0,16559.0,1.51392294]
[1672588787533,1.16667083,16560.0,16559.0,1.81462294]
[1672588788695,1.16667083,16560.0,16559.0,1.51392294]
[1672588788904,1.16667083,16560.0,16559.0,1.81462294]
[1672588789530,1.16667083,16560.0,16559.0,1.51392294]
[1672588789746,1.16667083,16560.0,16559.0,1.81462294]
[1672588790059,1.16667083,16560.0,16559.0,1.51392294]
[1672588790263,1.16667083,16560.0,16559.0,1.81462294]
[1672588791218,1.16667083,16560.0,16559.0,1.543208]
[1672588793004,1.16667083,16560.0,16559.0,1.81462294]
[1672588793216,1.14287979,16560.0,16559.0,1.81462294]
[1672588800054,1.14287979,16560.0,16559.0,1.0435377]
[1672588802787,1.14287979,16560.0,16559.0,0.7428377]
[1672588802990,1.14287979,16560.0,16559.0,1.0435377]
[1672588803522,1.0685352,16560.0,16559.0,2.17643449]
[1672588804877,1.0685352,16560.0,16559.0,2.7192771]
[1672588805408,1.0685352,16560.0,16559.0,2.17643449]
[1672588806358,1.0685352,16560.0,16559.0,2.71927137]
[1672588807514,1.0685352,16560.0,16559.0,2.17643449]
[1672588807722,1.1642352,16560.0,16559.0,2.17643449]
[1672588807924,1.1642352,16560.0,16559.0,2.71929192]
[1672588813194,1.1642352,16560.0,16559.0,2.17643449]
[1672588815710,1.08989123,16560.0,16559.0,2.7193768]
[1672588817812,1.08989123,16560.0,16559.0,2.17643449]
[1672588818025,0.64051264,16560.0,16559.0,1.54313334]
[1672588818342,0.64051264,16560.0,16559.0,2.17646234]
[1672588823279,0.61672301,16560.0,16559.0,2.17646234]
[1672588827685,0.54238008,16560.0,16559.0,2.17646234]
[1672588831999,0.51289509,16560.0,16559.0,2.17646234]
[1672588832726,0.51289509,16560.0,16559.0,1.87576234]
[1672588832936,0.51289509,16560.0,16559.0,2.17646234]
[1672588834211,0.51289509,16560.0,16559.0,1.87576234]
[1672588834415,0.51289509,16560.0,16559.0,2.17646234]
[1672588839467,0.4385542,16560.0,16559.0,2.17646234]
[1672588840308,0.28987271,16560.0,16559.0,2.17646234]
[1672588842934,0.28987271,16560.0,16559.0,2.71921619]
[1672588843985,0.28987271,16560.0,16559.0,2.17646234]
[1672588848404,0.14119191,16560.0,16559.0,2.17646234]
[1672588848613,0.14119191,16560.0,16559.0,1.54313334]
[1672588851661,0.06685275,16560.0,16559.0,1.54313334]
[1672588853333,0.04306405,16560.0,16559.0,2.17613706]
[1672588855751,0.04306405,16560.0,16559.0,1.57229936]
[1672588856274,0.6192,16564.0,16560.0,0.08710048]
[1672588856593,0.6192,16564.0,16563.0,0.57199475]
[1672588856799,0.6192,16564.0,16563.0,1.07159039]
[1672588856800,0.3,16564.0,16563.0,1.07159039]
[1672588857005,0.3,16564.0,16563.0,0.80029564]
[1672588857228,0.3,16564.0,16563.0,1.07159039]
[1672588857437,0.3,16564.0,16563.0,1.21259039]
[1672588857862,0.3,16564.0,16563.0,0.94129564]
[1672588861948,0.3,16564.0,16563.0,0.64059564]
[1672588862162,0.3,16564.0,16563.0,0.94129564]
[1672588862373,0.3,16564.0,16563.0,0.9713381]
[1672588863018,0.3,16564.0,16563.0,0.6706381]
[1672588863321,0.3,16564.0,16563.0,0.9713381]
[1672588865423,0.3,16564.0,16563.0,1.19746826]
[1672588865635,0.3,16564.0,16563.0,0.9713381]
[1672588867948,0.3,16564.0,16563.0,1.19746763]
[1672588869519,0.3,16564.0,16563.0,0.9713381]
[1672588872577,0.6156,16566.0,16563.0,0.9713381]
[1672588872791,0.6156,16566.0,16565.0,0.48158405]
[1672588872996,0.3,16566.0,16565.0,0.98117969]
[1672588873732,0.3,16566.0,16565.0,1.06817969]
[1672588878777,0.3,16566.0,16565.0,0.76747969]
[1672588878989,0.3,16566.0,16565.0,1.06817969]
[1672588882038,0.3,16566.0,16565.0,0.76747969]
[1672588882248,0.3,16566.0,16565.0,1.06817969]
[1672588886876,0.3,16566.0,16565.0,1.20386984]
[1672588887079,0.3,16566.0,16565.0,1.20386811]
[1672588887925,0.9254,16568.0,16566.0,0.05]
[1672588888136,0.9254,16568.0,16567.0,0.09044821]
[1672588888454,0.6007,16568.0,16567.0,0.14044821]
[1672588889707,0.3,16568.0,16567.0,0.14044821]
[1672588890446,0.3,16568.0,16567.0,0.27612052]
[1672588895599,0.3,16568.0,16567.0,0.41173103]
[1672588896440,0.3,16568.0,16567.0,0.27612052]
[1672588896759,0.3,16568.0,16567.0,0.41173103]
[1672588897285,0.3,16568.0,16567.0,0.27612052]
[1672588897599,0.3,16568.0,16567.0,0.41171847]
[1672588898007,0.3007,16570.0,16567.0,0.41171847]
[1672588898218,0.6007,16570.0,16568.0,0.05]
[1672588899491,0.6007,16570.0,16568.0,0.057]
[1672588902536,0.56985414,16570.0,16568.0,0.057]
[1672588903788,0.56985414,16570.0,16568.0,0.14744821]
[1672588904642,0.56985414,16570.0,16568.0,0.057]
[1672588906219,0.56985414,16570.0,16568.0,0.14744821]
[1672588907166,0.56985414,16570.0,16568.0,0.057]
[1672588907380,0.56985414,16570.0,16568.0,0.14744821]
[1672588908847,0.05,16571.0,16568.0,0.14744821]
[1672588909163,0.3007,16570.0,16568.0,0.14744821]
[1672588911575,0.3007,16572.0,16569.0,0.03084586]
[1672588911783,0.270258,16572.0,16570.0,0.03084586]
[1672588911999,0.270258,16572.0,16571.0,0.05]
[1672588913358,0.270258,16572.0,16571.0,0.059]
[1672588920722,0.270258,16572.0,16571.0,0.05]
[1672588920924,0.270258,16572.0,16571.0,0.057]
[1672588923350,0.3268,16573.0,16571.0,0.057]
[1672588923562,0.320317,16573.0,16572.0,0.03084586]
[1672588924083,0.3007,16574.0,16572.0,0.03084586]
[1672588925026,0.05,16573.0,16572.0,0.03084586]
[1672588925236,0.3007,16574.0,16572.0,0.03084586]
[1672588925658,0.3007,16574.0,16572.0,0.03784586]
[1672588925871,0.3007,16574.0,16573.0,0.05]
[1672588928076,0.3007,16574.0,16573.0,0.059]
[1672588933012,0.270481,16574.0,16573.0,0.059]
[1672588938573,0.261932,16574.0,16573.0,0.059]
[1672588940987,0.3062,16575.0,16573.0,0.059]
[1672588941837,0.3007,16576.0,16573.0,0.059]
[1672588942153,0.3007,16576.0,16573.0,0.06]
[1672588942781,0.6302,16578.0,16575.0,0.03084586]
[1672588943194,0.603998,16578.0,16575.0,0.03084586]
[1672588943509,0.603998,16578.0,16573.0,0.9647]
[1672588943510,0.573875,16578.0,16577.0,0.03084586]
[1672588944253,0.3007,16578.0,16577.0,0.03084586]
[1672588945736,0.3007,16578.0,16577.0,0.04084586]
[1672588946478,0.3007,16578.0,16577.0,0.01]
[1672588950570,0.26915414,16581.0,16577.0,0.01]
[1672588950780,0.3007,16578.0,16577.0,0.01]
[1672588951522,0.3007,16580.0,16577.0,0.01]
[1672588951720,0.3007,16580.0,16579.0,0.05]
[1672588952765,0.05,16579.0,16577.0,0.04084586]
[1672588952979,0.3007,16578.0,16577.0,0.04084586]
[1672588953399,0.3007,16578.0,16577.0,0.0001]
[1672588953820,0.3007,16578.0,16576.0,0.05]
[1672588954661,0.3007,16578.0,16576.0,0.001]
[1672588954662,0.3107,16578.0,16576.0,0.001]
[1672588955079,0.3057,16578.0,16576.0,0.001]
[1672588955293,0.3057,16578.0,16575.0,0.08084586]
[1672588955505,0.3007,16576.0,16575.0,0.08084586]
[1672588957200,0.3007,16576.0,16575.0,0.04844586]
[1672588957932,0.3007,16576.0,16575.0,0.12444586]
[1672588974117,0.3235,16582.0,16575.0,0.87514586]
[1672588974329,0.293007,16582.0,16581.0,0.03084586]
[1672588974536,0.3007,16583.0,16581.0,0.03084586]
[1672588974853,0.3007,16587.0,16581.0,0.63154586]
[1672588975061,0.3007,16589.0,16586.0,0.03084586]
[1672588975279,0.3007,16589.0,16588.0,0.03084586]
[1672588975481,0.3007,16589.0,16587.0,0.05]
[1672588975692,0.3007,16589.0,16584.0,0.03084586]
[1672588975898,0.3007,16586.0,16585.0,0.05]
[1672588976317,0.05,16588.0,16585.0,0.05]
[1672588976318,0.3007,16590.0,16585.0,0.05]
[1672588976536,0.3007,16590.0,16589.0,0.03084586]
[1672588977400,0.3007,16590.0,16588.0,0.03084586]
[1672588977606,0.3007,16590.0,16589.0,0.007]
[1672588977918,0.3007,16590.0,16586.0,0.03084586]
[1672588978129,0.3007,16587.0,16586.0,0.03084586]
[1672588979388,0.3007,16587.0,16584.0,0.08084586]
[1672588979601,0.27015414,16590.0,16584.0,0.03084586]
[1672588979602,0.3007,16585.0,16584.0,0.03084586]
[1672588979806,0.3007,16585.0,16582.0,0.03084586]
[1672588980015,0.26915414,16588.0,16582.0,0.03084586]
[1672588980016,0.3007,16583.0,16582.0,0.03084586]
[1672588981060,0.3007,16583.0,16582.0,0.17084586]
[1672588982014,0.3007,16583.0,16582.0,0.0972]
[1672588982438,0.3007,16583.0,16582.0,0.0011]
[1672588982653,0.3007,16583.0,16582.0,0.0001]
[1672588982851,0.05,16582.0,16580.0,0.03084586]
[1672588983055,0.05,16582.0,16581.0,0.05]
[1672588983267,0.3507,16582.0,16581.0,0.05]
[1672588984421,0.4407,16582.0,16581.0,0.053]
[1672588985152,0.4407,16582.0,16581.0,0.003]
[1672588985361,0.4407,16582.0,16577.0,0.05]
[1672588985362,0.05,16581.0,16577.0,0.05]
[1672588985575,0.05,16581.0,16578.0,0.03084586]
[1672588985789,0.3007,16579.0,16578.0,0.03084586]
[1672588986630,0.3007,16579.0,16578.0,0.04584586]
[1672588986841,0.3007,16579.0,16576.0,0.03084586]
[1672588987147,0.3007,16577.0,16576.0,0.03084586]
[1672588988204,0.3157,16577.0,16576.0,0.03184586]
[1672588989996,0.015,16577.0,16576.0,0.03184586]
[1672588990204,0.015,16577.0,16576.0,0.08184586]
[1672588994092,0.3014,16581.0,16577.0,0.05877167]
[1672588994298,0.3014,16581.0,16580.0,0.03084586]
[1672588994514,0.3007,16583.0,16580.0,0.03084586]
[1672588994716,0.3007,16583.0,16581.0,0.05]
[1672588994925,0.05,16582.0,16581.0,0.05]
[1672588995142,0.05,16582.0,16580.0,0.03084586]
[1672588995355,0.3007,16581.0,16578.0,0.03084586]
[1672588995570,0.05,16580.0,16578.0,0.03084586]
[1672588995976,0.3507,16580.0,16579.0,0.05]
[1672588996501,0.3667,16580.0,16579.0,0.05]
[1672588997032,0.3647,16580.0,16578.0,0.05]
[1672588997246,0.3147,16580.0,16578.0,0.05]
[1672588997875,0.3007,16580.0,16578.0,0.05]
[1672588998086,0.3187,16580.0,16578.0,0.052]
[1672588998924,0.05,16579.0,16578.0,0.052]
[1672588999133,0.3187,16580.0,16578.0,0.052]
[1672588999769,0.05,16579.0,16578.0,0.052]
[1672589000182,0.3187,16580.0,16578.0,0.052]
[1672589000388,0.05,16579.0,16578.0,0.052]
[1672589000925,0.05,16579.0,16578.0,0.002]
[1672589001973,0.3507,16579.0,16578.0,0.002]
[1672589002705,0.3687,16579.0,16578.0,0.002]
[1672589003027,0.05,16578.0,16573.0,0.7955]
[1672589003233,0.3007,16576.0,16573.0,0.7955]
[1672589003444,0.3007,16576.0,16574.0,0.05]
[1672589003445,0.05,16575.0,16574.0,0.05]
[1672589003653,0.3007,16576.0,16574.0,0.05]
[1672589004380,0.3147,16576.0,16574.0,0.05]
[1672589005857,0.05,16575.0,16574.0,0.05]
[1672589006065,0.3147,16576.0,16574.0,0.05]
[1672589019315,0.3147,16576.0,16574.0,0.14044821]
[1672589022788,0.3157,16576.0,16574.0,0.14044821]
[1672589023119,0.3007,16576.0,16574.0,0.14044821]
[1672589023306,0.3187,16576.0,16574.0,0.14044821]
[1672589029091,0.3187,16576.0,16574.0,0.17124238]
[1672589029509,0.3187,16576.0,16574.0,0.30684033]
[1672589030776,0.3187,16576.0,16574.0,0.14044821]
[1672589031719,0.3187,16576.0,16574.0,0.05]
[1672589033407,0.05,16575.0,16574.0,0.05]
[1672589033816,0.3147,16576.0,16574.0,0.05]
[1672589034351,0.014,16575.0,16574.0,0.05]
[1672589034550,0.3147,16575.0,16574.0,0.05]
[1672589035392,0.3007,16575.0,16574.0,0.05]
[1672589036035,0.3147,16575.0,16574.0,0.05]
[1672589036557,0.3187,16575.0,16574.0,0.05]
[1672589038361,0.3007,16575.0,16574.0,0.05]
[1672589038671,0.3257,16575.0,16574.0,0.05]
[1672589038867,0.3007,16575.0,16574.0,0.05]
[1672589039081,0.3147,16575.0,16574.0,0.05]
[1672589039291,0.3007,16575.0,16574.0,0.05]
[1672589039511,0.3147,16575.0,16574.0,0.05]
[1672589039924,0.3007,16575.0,16574.0,0.05]
[1672589040145,0.3147,16575.0,16574.0,0.05]
[1672589041923,0.3007,16575.0,16574.0,0.05]
[1672589042135,0.3147,16575.0,16574.0,0.05]
[1672589042350,0.3007,16575.0,16574.0,0.05]
[1672589042554,0.3257,16575.0,16574.0,0.05]
[1672589043716,0.3257,16575.0,16572.0,0.09044821]
[1672589043920,0.3257,16575.0,16571.0,0.13559795]
[1672589043921,0.3007,16573.0,16571.0,0.22604616]
[1672589044133,0.3007,16573.0,16572.0,0.05]
[1672589044761,0.3007,16573.0,16572.0,0.14044821]
[1672589044973,0.3147,16573.0,16572.0,0.14044821]
[1672589045502,0.3147,16573.0,16572.0,0.05]
[1672589048442,0.3007,16573.0,16572.0,0.05]
[1672589048654,0.3257,16573.0,16572.0,0.04984672]
[1672589053911,0.025,16573.0,16572.0,0.04984672]
[1672589062528,0.3507,16576.0,16572.0,0.04984672]
[1672589063790,0.3007,16575.0,16572.0,0.06584672]
[1672589064099,0.05,16574.0,16572.0,0.06584672]
[1672589065784,0.006,16574.0,16572.0,0.06584672]
[1672589069152,0.006,16574.0,16572.0,0.36654672]
[1672589072295,0.006,16574.0,16572.0,0.06584672]
[1672589072509,0.006,16574.0,16572.0,0.36654672]
[1672589073658,0.006,16574.0,16573.0,0.3007]
[1672589074083,0.006,16574.0,16572.0,0.06584672]
[1672589074401,0.006,16574.0,16573.0,0.3007]
[1672589075032,0.083,16574.0,16573.0,0.3037]
[1672589075765,0.083,16574.0,16573.0,0.003]
[1672589080076,0.133,16574.0,16573.0,0.003]
[1672589085013,0.4337,16574.0,16573.0,0.003]
[1672589086898,0.133,16574.0,16573.0,0.003]
[1672589087116,0.4337,16574.0,16573.0,0.003]
[1672589097719,0.133,16574.0,16573.0,0.003]
[1672589097931,0.4337,16574.0,16573.0,0.003]
[1672589109076,0.4337,16574.0,16573.0,0.00291936]
[1672589110765,0.133,16574.0,16573.0,0.00291936]
[1672589110962,0.3837,16574.0,16573.0,0.00291936]
[1672589120006,0.083,16574.0,16573.0,0.00291936]
[1672589120323,0.3837,16574.0,16573.0,0.00291936]
[1672589122314,0.083,16574.0,16573.0,0.00291936]
[1672589122527,0.3837,16574.0,16573.0,0.00291936]
[1672589124622,0.083,16574.0,16573.0,0.00291936]
[1672589124833,0.3837,16574.0,16573.0,0.00291936]
[1672589129460,0.083,16574.0,16573.0,0.00291936]
[1672589129676,0.3837,16574.0,16573.0,0.00291936]
[1672589133670,0.083,16574.0,16573.0,0.00291936]
[1672589133988,0.3837,16574.0,16573.0,0.00291936]
[1672589135460,0.083,16574.0,16573.0,0.00291936]
[1672589135668,0.3837,16574.0,16573.0,0.00291936]
[1672589137144,0.38363989,16574.0,16573.0,0.00291936]
[1672589155954,0.08293989,16574.0,16573.0,0.00291936]
[1672589156158,0.38363989,16574.0,16573.0,0.00291936]
[1672589162785,0.08293989,16574.0,16573.0,0.00291936]
[1672589163202,0.38363989,16574.0,16573.0,0.00291936]
[1672589166353,0.05337289,16574.0,16573.0,0.00291936]
[1672589166552,0.05337289,16574.0,16573.0,0.05291936]
[1672589192740,0.05337289,16574.0,16573.0,0.80291936]
[1672589192951,0.05337289,16574.0,16573.0,1.02896552]
[1672589193157,0.03069328,16574.0,16573.0,1.4831096]
[1672589193473,0.03069328,16574.0,16573.0,1.70922887]
[1672589193685,0.03069328,16574.0,16573.0,1.4831096]
[1672589194103,0.00339328,16574.0,16573.0,1.4831096]
[1672589194413,0.58397828,16579.0,16574.0,0.06017983]
[1672589194628,0.58397828,16579.0,16577.0,0.05]
[1672589194842,0.3007,16579.0,16577.0,0.05]
[1672589196835,0.3577,16579.0,16577.0,0.058]
[1672589200617,0.057,16579.0,16577.0,0.058]
[1672589200834,0.3577,16579.0,16577.0,0.058]
[1672589205031,0.3007,16578.0,16577.0,0.058]
[1672589206495,0.3577,16578.0,16577.0,0.058]
[1672589213649,0.057,16578.0,16577.0,0.058]
[1672589213858,0.3577,16578.0,16577.0,0.058]
[1672589219743,0.057,16578.0,16577.0,0.058]
[1672589219952,0.3577,16578.0,16577.0,0.058]
[1672589227840,0.057,16578.0,16577.0,0.058]
[1672589228060,0.3577,16578.0,16577.0,0.058]
[1672589232996,0.057,16578.0,16577.0,0.058]
[1672589233206,0.3577,16578.0,16577.0,0.058]
[1672589236459,0.057,16578.0,16577.0,0.058]
[1672589236668,0.3577,16578.0,16577.0,0.008]
[1672589242986,0.3577,16578.0,16577.0,0.0078099]
[1672589247808,0.057,16578.0,16577.0,0.0078099]
[1672589254238,0.107,16578.0,16577.0,0.0078099]
[1672589266945,0.4077,16578.0,16577.0,0.0078099]
[1672589289656,0.3577,16578.0,16577.0,0.0078099]
[1672589289870,0.3577,16578.0,16577.0,0.00772644]
[1672589304058,0.057,16578.0,16577.0,0.00772644]
[1672589332973,0.057,16578.0,16577.0,0.30842644]
[1672589333908,0.057,16578.0,16577.0,0.00772644]
[1672589334123,0.057,16578.0,16577.0,0.30842644]
[1672589339893,0.057,16578.0,16577.0,0.30820794]
[1672589343161,0.057,16578.0,16577.0,0.00750794]
[1672589356307,0.3577,16578.0,16577.0,0.00750794]
[1672589357028,0.057,16578.0,16577.0,0.00750794]
[1672589357238,0.3577,16578.0,16577.0,0.00750794]
[1672589365878,0.057,16578.0,16577.0,0.00750794]
[1672589368389,0.3577,16578.0,16577.0,0.00750794]
[1672589368602,0.057,16578.0,16577.0,0.00750794]
[1672589368806,0.3577,16578.0,16577.0,0.00750794]
[1672589372694,0.057,16578.0,16577.0,0.00750794]
[1672589387929,0.05683253,16578.0,16577.0,0.00750794]
[1672589398024,0.10683253,16578.0,16577.0,0.00750794]
[1672589398348,0.05683253,16578.0,16577.0,0.00750794]
[1672589398664,0.10683253,16578.0,16577.0,0.00750794]
[1672589404010,0.40753253,16578.0,16577.0,0.00750794]
[1672589405907,0.10683253,16578.0,16577.0,0.00750794]
[1672589406118,0.40753253,16578.0,16577.0,0.00750794]
[1672589406749,0.10683253,16578.0,16577.0,0.00750794]
[1672589406957,0.40753253,16578.0,16577.0,0.00750794]
[1672589412318,0.40753253,16578.0,16577.0,0.00740794]
[1672589412738,0.05,16577.0,16574.0,0.05]
[1672589412951,0.3007,16575.0,16574.0,0.05]
[1672589413903,0.3007,16575.0,16574.0,0.065]
[1672589415582,0.3007,16575.0,16574.0,0.015]
[1672589429040,0.05,16577.0,16574.0,0.015]
[1672589429250,0.3007,16575.0,16574.0,0.015]
[1672589445866,0.05,16577.0,16574.0,0.015]
[1672589446176,0.3007,16575.0,16574.0,0.015]
[1672589447554,0.05,16577.0,16574.0,0.015]
[1672589447768,0.3007,16575.0,16574.0,0.015]
[1672589451533,0.05,16578.0,16574.0,0.015]
[1672589451534,0.3007,16576.0,16574.0,0.015]
[1672589459113,0.3007,16577.0,16574.0,0.015]
[1672589460069,0.3007,16577.0,16573.0,0.3507]
[1672589460274,0.3007,16577.0,16574.0,0.015]
[1672589460913,0.3007,16577.0,16574.0,0.01492289]
[1672589464899,0.05,16578.0,16574.0,0.01492289]
[1672589465111,0.3007,16577.0,16574.0,0.01492289]
[1672589466794,0.3007,16576.0,16574.0,0.01492289]
[1672589467749,0.3007,16576.0,16574.0,0.015]
[1672589471417,0.05,16578.0,16574.0,0.015]
[1672589471744,0.3007,16576.0,16574.0,0.015]
[1672589478160,0.05,16578.0,16574.0,0.015]
[1672589478356,0.3007,16576.0,16574.0,0.015]
[1672589479515,0.05,16578.0,16574.0,0.015]
[1672589479723,0.3007,16576.0,16573.0,0.3507]
[1672589479938,0.3007,16576.0,16574.0,0.015]
[1672589480570,0.05,16578.0,16574.0,0.015]
[1672589480785,0.3007,16576.0,16574.0,0.015]
[1672589481413,0.05,16578.0,16574.0,0.015]
[1672589481731,0.3007,16576.0,16574.0,0.015]
[1672589482776,0.3007,16576.0,16573.0,0.3507]
[1672589482987,0.3007,16576.0,16574.0,0.015]
[1672589489408,0.05,16578.0,16574.0,0.015]
[1672589489719,0.3007,16576.0,16574.0,0.015]
[1672589490874,0.05,16578.0,16573.0,0.05]
[1672589491192,0.3007,16576.0,16574.0,0.015]
[1672589491399,0.3007,16576.0,16573.0,0.44074769]
[1672589491608,0.3007,16576.0,16574.0,0.015]
[1672589492042,0.3007,16576.0,16573.0,0.52474769]
[1672589492566,0.3007,16576.0,16574.0,0.015]
[1672589493829,0.005,16576.0,16573.0,0.22404769]
[1672589494032,0.3057,16576.0,16573.0,0.52474769]
[1672589494242,0.3007,16576.0,16573.0,0.44074769]
[1672589494454,0.05,16578.0,16574.0,0.015]
[1672589494664,0.05,16578.0,16573.0,0.14004769]
[1672589494870,0.005,16576.0,16573.0,0.22404769]
[1672589495291,0.3007,16576.0,16573.0,0.44074769]
[1672589495615,0.3007,16576.0,16574.0,0.015]
[1672589496033,0.05,16578.0,16574.0,0.015]
[1672589496243,0.3007,16576.0,16574.0,0.015]
[1672589497085,0.3057,16576.0,16573.0,0.22404769]
[1672589497498,0.3007,16576.0,16573.0,0.14004769]
[1672589497708,0.3007,16576.0,16574.0,0.015]
[1672589498033,0.3007,16576.0,16573.0,0.14004769]
[1672589498347,0.3057,16576.0,16573.0,0.22404769]
[1672589498555,0.05,16578.0,16574.0,0.015]
[1672589498760,0.3007,16576.0,16574.0,0.015]
[1672589500228,0.3007,16576.0,16573.0,0.14004769]
[1672589500553,0.3057,16576.0,16573.0,0.22404769]
[1672589500752,0.3007,16576.0,16574.0,0.015]
[1672589501289,0.3057,16576.0,16573.0,0.134]
[1672589501700,0.3007,16576.0,16573.0,0.05]
[1672589502024,0.3007,16576.0,16574.0,0.015]
[1672589502227,0.3007,16576.0,16573.0,0.05]
[1672589502435,0.005,16576.0,16573.0,0.134]
[1672589503072,0.3057,16576.0,16573.0,0.134]